{"text_format":"1","workbook":"xlsx","n_sheets":10,"sheets":["Preliminary App Worksheet","Final App Worksheet","Participant Agreement","Schedule A - Defined Terms","Schedule B - Eligibility","Measure Assumptions","Version Control","Program Activity Information","Program Activity Measures EE","Dropdown List"],"not_rendered":{"charts":0,"images":2,"macros":1,"external_links":2,"defined_names":17,"comments":0,"pivot_tables":0},"unopened":[],"bounds":{"document_bytes":16777216,"sheet_cells":100000,"rows_first":2000,"rows_last":500,"rows_between":2000,"halvings":0,"cell_chars":16384,"cell_head_chars":4096},"cells_cut":0,"cells_raw":0,"read":"whole","date_system":"1900"}

{"sheet":"Preliminary App Worksheet","index":0,"n_rows":59,"n_cols":14,"rows_kept":59,"cut":false,"hidden":false,"merged":[[8,5,8,11],[13,1,13,3],[19,1,19,2],[9,9,9,11],[9,5,9,8],[10,5,10,8],[11,5,11,8],[12,5,12,8],[10,9,10,11],[14,5,19,11],[12,9,12,11],[15,1,15,3],[16,1,16,3],[17,1,17,3],[6,9,6,11],[11,9,11,11],[23,1,23,3],[24,1,24,3],[26,1,26,3],[18,1,18,3],[20,1,20,3],[21,1,21,3],[22,1,22,3],[8,1,8,3],[9,1,9,3],[6,5,6,6],[10,1,10,3],[11,1,11,3],[12,1,12,3],[14,1,14,3],[25,7,25,11],[25,5,25,6],[25,2,25,3],[56,0,56,2],[58,0,58,2],[27,1,27,3],[35,0,35,2],[47,0,47,2]]}
[]
[]
[]
[]
[]
[]
["Residential New Construction Program (RNC) - Preliminary Application Project Worksheet (Aug. 28, 2018)",null,null,null,null,"Date (DD/MM/YYYY):",null,null,"LDC:"]
[]
["Company name (the \"Applicant\"):",null,null,null,null,"Please provide the Energy Advisor contact details for Performance Based and Custom Incentives:"]
["Applicant address (street number and name):",null,null,null,null,"Energy Advisor company name:"]
["Applicant address (city, province, postal code):",null,null,null,null,"Energy Advisor contact name:"]
["Applicant HST number (for the incentive payment):",null,null,null,null,"Energy Advisor phone number:"]
["Project key contact first name:",null,null,null,null,"Energy Advisor email:"]
["Project key contact last name:"]
["Project key contact phone number:",null,null,null,null,"PLEASE NOTE: \nThe Preliminary Application must be received by the LDC prior to commencement of construction (framing or commencement of structural work).\nIncentives are paid based on the Final Application submitted to the LDC upon construction completion and the Incentives available at the time of the Final Application submission. Incentive amounts are subject to change to reflect the building code, equipment standard updates and product market costs. \n"]
["Project key contact email:"]
["Project/Development name (the \"Project\"):"]
["Project site/development permit #:"]
["Project site address:"]
["Project site city / postal code:"]
["Total number of homes:",{"$f":"SUM(B22:D25,B26)","v":0},null,null,null,"Key Dates:"]
["      Detached:",null,null,null,null,"December 19, 2018: New deadline to submit Preliminary Applications to the LDC."]
["      Semi-detached:",null,null,null,null,"December 31, 2020: Deadline to complete homes."]
["      Row house / Townhouse:",null,null,null,null,"March 31, 2021: Deadline to submit the final application and supporting materials. "]
["      Bungalow"]
["      Other (please provide a brief description): ",null,null,null,null,"Return the Application to: ",null,"RNC.SUPPORT@HydroOne.com"]
["Estimated construction start date (framing or structural work) (DD/MM/YYYY):"]
["Estimated construction completion date (DD/MM/YYYY):"]
[]
["Performance Based Measure Details"]
["Measure","Number of Homes","Unit Incentive","Total Incentive"]
["Number of ENERGY STAR® qualified homes",null,500,{"$f":"C32*B32","v":0}]
["Number of EnerGuide 83 or 84 homes",null,500,{"$f":"C33*B33","v":0}]
["Number of EnerGuide 85 or higher homes",null,1000,{"$f":"C34*B34","v":0}]
[]
["Total Performance Based Incentive Estimate",null,null,{"$f":"D32+D33+D34","v":0}]
[]
[null,null,"*Please note that for columns C to N in the Prescriptive Measure Table below, indicate the number of measures per house model type"]
["Prescriptive Measure Details","Number of Homes that match Model","All off switch","SEER 15 central air conditioner","Dimmer switch","Indoor lighting timer","Indoor motion sensor","Outdoor lighting timer","Outdoor motion sensor","ENERGY STAR qualified light fixture - 1 or 2 sockets","ENERGY STAR qualified light fixture - 3 or more sockets","ENERGY STAR qualified LED recessed lighting","ENERGY STAR qualified LED under the counter lighting","ENERGY STAR qualified LED"]
["Unit Incentive","//////////////////",50,30,3,3,3,3,3,3,10,5,5,5]
["House Model 1"]
["House Model 2"]
["House Model 3"]
["House Model 4"]
["House Model 5"]
["Prescriptive Incentive Estimate",null,{"$f":"C40*($B$41*C41+$B$42*C42+$B$43*C43+$B$44*C44+$B$45*C45)","v":0},0,0,0,0,0,0,0,0,0,0,0]
[]
["Total Prescriptive Incentive Estimate",null,null,{"$f":"SUM(C46:N46)","v":0}]
[]
["Custom Measure Details"]
["Custom Project Name/Description","First Year kW Savings","Potential kW Incentive","First Year kWh Savings","Potential kWh Incentive","Initial Incentive Estimate","Custom Project Cost","Final Incentive Estimate","Custom Project TRC"]
[null,null,{"$f":"B52*800","v":0},null,{"$f":"D52*0.1","v":0},{"$f":"IF(C52<E52,E52,C52)","v":0},null,{"$f":"IF(F52<0.5*G52,F52,0.5*G52)","v":0}]
[null,null,{"$f":"B53*800","v":0},null,{"$f":"D53*0.1","v":0},{"$f":"IF(C53<E53,E53,C53)","v":0},null,{"$f":"IF(F53<0.5*G53,F53,0.5*G53)","v":0}]
[null,null,0,null,{"$f":"D54*0.1","v":0},{"$f":"IF(C54<E54,E54,C54)","v":0},null,0]
[null,null,0,null,{"$f":"D55*0.1","v":0},{"$f":"IF(C55<E55,E55,C55)","v":0},null,0]
[]
["Total Custom Incentive Estimate",null,null,{"$f":"SUM(H52:H55)","v":0}]
[]
["Total Particpant Incentive Estimate",null,null,{"$f":"D36+D48+D57","v":0}]

{"sheet":"Final App Worksheet","index":1,"n_rows":71,"n_cols":14,"rows_kept":71,"cut":false,"hidden":false,"merged":[[14,5,15,11],[16,5,16,8],[16,9,16,11],[69,6,69,8],[69,10,69,12],[67,6,67,8],[67,10,67,12],[68,6,68,8],[68,10,68,12],[10,1,10,3],[10,9,10,11],[13,1,13,3],[19,1,19,2],[66,6,66,8],[66,10,66,12],[66,2,67,4],[22,1,22,3],[23,1,23,3],[11,1,11,3],[12,1,12,3],[14,1,14,3],[15,1,15,3],[16,1,16,3],[21,1,21,3],[17,1,17,3],[18,1,18,3],[47,0,47,2],[58,0,58,2],[56,0,56,5],[26,1,26,3],[27,1,27,3],[70,10,70,12],[68,0,70,1],[25,2,25,3],[6,5,6,6],[20,1,20,3],[24,1,24,3],[8,5,8,11],[9,5,9,8],[9,9,9,11],[11,9,11,11],[12,9,12,11],[12,5,12,8],[6,9,6,11],[8,1,8,3],[9,1,9,3],[35,0,35,2]]}
[]
[]
[]
[]
[]
[]
["Residential New Construction Program (RNC) - Final Application Project Worksheet (Aug. 28, 2018)",null,null,null,null,"Date (DD/MM/YYYY):",null,null,"LDC:",{"$f":"IF(ISBLANK('Preliminary App Worksheet'!J7),\"\",'Preliminary App Worksheet'!J7)","v":""}]
[]
["Company name (the \"Applicant\"):",{"$f":"IF(ISBLANK('Preliminary App Worksheet'!B9),\"\",'Preliminary App Worksheet'!B9)","v":""},null,null,null,"Please provide the Energy Advisor contact details for Performance Based and Custom Incentives:"]
["Applicant address (street number and name):",{"$f":"IF(ISBLANK('Preliminary App Worksheet'!B10),\"\",'Preliminary App Worksheet'!B10)","v":""},null,null,null,"Energy Advisor company name:",null,null,null,{"$f":"IF(ISBLANK('Preliminary App Worksheet'!J10),\"\",'Preliminary App Worksheet'!J10)","v":""}]
["Applicant address (city, province, postal code):",{"$f":"IF(ISBLANK('Preliminary App Worksheet'!B11),\"\",'Preliminary App Worksheet'!B11)","v":""},null,null,null,"Energy Advisor contact name:",null,null,null,{"$f":"IF(ISBLANK('Preliminary App Worksheet'!J11),\"\",'Preliminary App Worksheet'!J11)","v":""}]
["Applicant HST number (for the incentive payment):",{"$f":"IF(ISBLANK('Preliminary App Worksheet'!B12),\"\",'Preliminary App Worksheet'!B12)","v":""},null,null,null,"Energy Advisor phone number:",null,null,null,{"$f":"IF(ISBLANK('Preliminary App Worksheet'!J12),\"\",'Preliminary App Worksheet'!J12)","v":""}]
["Project key contact first name:",{"$f":"IF(ISBLANK('Preliminary App Worksheet'!B13),\"\",'Preliminary App Worksheet'!B13)","v":""},null,null,null,"Energy Advisor email:",null,null,null,{"$f":"IF(ISBLANK('Preliminary App Worksheet'!J13),\"\",'Preliminary App Worksheet'!J13)","v":""}]
["Project key contact last name:",{"$f":"IF(ISBLANK('Preliminary App Worksheet'!B14),\"\",'Preliminary App Worksheet'!B14)","v":""},null,null,null,"Key Dates:"]
["Project key contact phone number:",{"$f":"IF(ISBLANK('Preliminary App Worksheet'!B15),\"\",'Preliminary App Worksheet'!B15)","v":""},null,null,null,"December 19, 2018: New deadline to submit Preliminary Applications to the LDC.\nDecember 31, 2020: Deadline to complete homes.\nMarch 31, 2021: Deadline to submit the final application and supporting materials. "]
["Project key contact email:",{"$f":"IF(ISBLANK('Preliminary App Worksheet'!B16),\"\",'Preliminary App Worksheet'!B16)","v":""}]
["Project name (the \"Project\"):",{"$f":"IF(ISBLANK('Preliminary App Worksheet'!B17),\"\",'Preliminary App Worksheet'!B17)","v":""},null,null,null,"Return the Application and Supporting Documentation to:",null,null,null,"RNC.SUPPORT@HydroOne.com"]
["Project site/development permit #:",{"$f":"IF(ISBLANK('Preliminary App Worksheet'!B18),\"\",'Preliminary App Worksheet'!B18)","v":""}]
["Project site address:",{"$f":"IF(ISBLANK('Preliminary App Worksheet'!B19),\"\",'Preliminary App Worksheet'!B19)","v":""}]
["Project site city / postal code:",{"$f":"IF(ISBLANK('Preliminary App Worksheet'!B20),\"\",'Preliminary App Worksheet'!B20)","v":""},null,{"$f":"IF(ISBLANK('Preliminary App Worksheet'!D20),\"\",'Preliminary App Worksheet'!D20)","v":""}]
["Total number of homes by housing type:",{"$f":"SUM(B22:D25,B26)","v":0}]
["      Detached:"]
["      Semi-detached:"]
["      Row house / Townhouse:"]
["      Bungalow"]
["      Other (please provide a brief description): "]
["Actual construction start date (framing or structural work) (DD/MM/YYYY):"]
["Actual construction completion date (DD/MM/YYYY):"]
[]
["Performance Based Measure Details"]
["Measure","Number of Homes","Unit Incentive","Total Incentive"]
["Number of ENERGY STAR® qualified homes",null,500,{"$f":"C32*B32","v":0}]
["Number of EnerGuide 83 or 84 homes",null,500,{"$f":"C33*B33","v":0}]
["Number of EnerGuide 85 or better homes",null,1000,{"$f":"C34*B34","v":0}]
[]
["Total Performance Based Incentive",null,null,{"$f":"D32+D33+D34","v":0}]
[]
[null,null,"*Please note that for columns C to N in the Prescriptive Measure Table below, indicate the number of measures per house model type"]
["Prescriptive Measure Details","Number of Homes that match Model","All off switch","SEER 15 central air conditioner","Dimmer switch","Indoor lighting timer","Indoor motion sensor","Outdoor lighting timer","Outdoor motion sensor","ENERGY STAR Qualified Light Fixture - 1 or 2 Sockets","ENERGY STAR qualified light fixture - 3 or more sockets","ENERGY STAR qualified LED recessed lighting","ENERGY STAR qualified LED under the counter lighting","ENERGY STAR qualified LED"]
["Unit Incentive","///////////////",50,30,3,3,3,3,3,3,10,5,5,5]
["House Model 1"]
["House Model 2"]
["House Model 3"]
["House Model 4"]
["House Model 5"]
["Prescriptive Incentives by Measure","///////////////",{"$f":"C40*($B$41*C41+$B$42*C42+$B$43*C43+$B$44*C44+$B$45*C45)","v":0},{"$f":"D40*($B$41*D41+$B$42*D42+$B$43*D43+$B$44*D44+$B$45*D45)","v":0},{"$f":"E40*($B$41*E41+$B$42*E42+$B$43*E43+$B$44*E44+$B$45*E45)","v":0},0,0,0,0,0,0,0,0,0]
[]
["Total Prescriptive Incentive",null,null,{"$f":"SUM(C46:N46)","v":0}]
[]
["Custom Measure Details"]
["Custom Project Name/Description","First Year kW Savings","Potential kW Incentive","First Year kWh Savings","Potential kWh Incentive","Custom Project Incentive Initial Estimate","Custom Project Cost","Custom Project Incentive Final Estimate","Custom Project TRC"]
[null,null,{"$f":"B52*800","v":0},null,{"$f":"D52*0.1","v":0},{"$f":"IF(C52<E52,E52,C52)","v":0},null,{"$f":"IF(F52<0.5*G52,F52,0.5*G52)","v":0}]
[null,null,{"$f":"B53*800","v":0},null,{"$f":"D53*0.1","v":0},{"$f":"IF(C53<E53,E53,C53)","v":0},null,{"$f":"IF(F53<0.5*G53,F53,0.5*G53)","v":0}]
[null,null,0,null,{"$f":"D54*0.1","v":0},{"$f":"IF(C54<E54,E54,C54)","v":0},null,0]
[null,null,{"$f":"B55*800","v":0},null,{"$f":"D55*0.1","v":0},{"$f":"IF(C55<E55,E55,C55)","v":0},null,{"$f":"IF(F55<0.5*G55,F55,0.5*G55)","v":0}]
[]
["Total Custom Incentive",null,null,null,null,null,{"$f":"SUM(G52:G55)","v":0},{"$f":"SUM(H52:H55)","v":0}]
[]
["Total Participant Incentive",null,null,{"$f":"D36+D48+H57","v":0}]
[]
["Required Supporting Documentation"]
["All homes in this Application have building permits?","         Yes","         No"]
["All homes in this Application have occupancy permits?","         Yes","         No"]
[]
["All supporting documentation listed below must be attached. Incomplete applications will not be processed and will be returned to the applicant."]
["All Incentives",null,null,null,"Performance Based Incentives (for each home)",null,null,null,"Prescriptive Incentives (for each home)",null,null,null,"Custom Incentives"]
["Final Application",null,"EnerGuide Energy Efficiency Evaluation Report or ENERGY STAR® for New Homes Certificate signed by an Energy Advisor",null,null,null,"Occupancy Permit",null,null,null,"Occupancy Permit"]
["Signed Participant Agreement & Certification Statement",null,null,null,null,null,"If there is no issued occupancy permit, provide the Building Permit",null,null,null,"If there is no issued occupancy permit, provide the Building Permit"]
["The applicant must signify its acceptance of the terms and conditions of this final application in the Participant Agreement (together with the applicable terms in Schedules “A” and “B”) and the Certification Statement before forwarding this Application to the Local Distribution Company (the “LDC”). ",null,null,null,null,null,null,null,null,null,"Base case and energy efficiency case \nmodeling report file / engineering calcs"]
[null,null,null,null,null,null,null,null,null,null,"RNC Resource Planning Tool"]
[null,null,null,null,null,null,null,null,null,null,"Cost documentation (receipts, invoices) to support submitted project costs"]

{"sheet":"Participant Agreement","index":2,"n_rows":76,"n_cols":9,"rows_kept":76,"cut":false,"hidden":false,"merged":[[73,1,73,6],[74,1,74,6],[74,8,74,13],[75,1,75,6],[67,1,67,13],[68,1,68,13],[69,1,69,13],[70,1,70,13],[71,1,71,13],[72,1,72,6],[72,8,72,13],[66,1,66,13],[55,1,55,13],[56,1,56,13],[57,1,57,13],[58,1,58,13],[59,1,59,13],[60,1,60,13],[61,1,61,13],[62,1,62,13],[63,1,63,13],[64,1,64,13],[65,1,65,13],[54,1,54,13],[41,1,41,13],[42,1,42,13],[43,1,43,13],[44,1,44,13],[45,1,45,13],[47,1,47,13],[49,1,49,13],[50,1,50,13],[51,1,51,13],[52,1,52,13],[53,1,53,13],[40,1,40,13],[29,1,29,13],[30,1,30,13],[31,1,31,13],[32,1,32,13],[33,1,33,13],[34,1,34,13],[35,1,35,13],[36,1,36,13],[37,1,37,13],[38,1,38,13],[39,1,39,13],[28,1,28,13],[17,1,17,13],[18,2,18,13],[19,1,19,13],[20,1,20,13],[21,1,21,13],[22,1,22,13],[23,1,23,13],[24,2,24,13],[25,1,25,13],[26,1,26,13],[27,1,27,13],[16,1,16,13],[1,1,1,13],[2,1,2,13],[4,1,4,13],[5,1,5,13],[6,1,6,13],[8,1,8,13],[10,1,10,13],[12,1,12,13],[13,1,13,13],[14,1,14,13],[15,1,15,13]]}
[]
[null,"RESIDENTIAL NEW CONSTRUCTION PROGRAM"]
[null,"PARTICIPANT AGREEMENT"]
[]
[null,"This Participant Agreement is between the Participant (being the “Applicant” in the Application) and the LDC identified in the Application and contains terms and conditions that govern the Save On Energy Residential New Construction Program (“RNC” or the “Program”)."]
[]
[null,"The Participant has submitted an Application to the LDC to participate in the Program and it outlines a proposed Project that would qualify for the Program and Participant Incentives.  If your Application is approved by the LDC, it shall form part of this agreement. "]
[]
[null,"The RNC Program is funded by the Independent Electricity System Operator (\"IESO\"). "]
[]
[null,"Participant Agreement"]
[]
[null,"1. Defined Terms:  All capitalized terms not herein defined will have the meanings given in Schedule “A” attached hereto or the saveONenergy New Construction Program Rules (the “Program Rules”), as applicable.  "]
[]
[null,"2. Initiative:  The Applicant has applied for certain Incentives pursuant to the Final Application submitted to the LDC under the Initiative.  "]
[]
[null,"3. Incentive Payments: The aggregate Incentive Payments that may be payable to the Applicant hereunder will be based on the following:  "]
[null,"(a) The LDC will be obligated to pay the below amounts to the Applicant who, subject to Section 4, satisfies the applicable Eligibility Criteria:  "]
[null,null,"i) with respect to any Prescriptive Component, a payment equal to the Participant Incentive amount set out in the Eligible Measures and Participant Incentives List in the Program Rules per Eligible Prescriptive Measure for each Eligible Prescriptive Measure installed, implemented or undertaken and completed at the Project (the “Prescriptive Incentive”); \nii) with respect to any Custom Component, the  Participant Incentive amount(s) calculated according to the Eligible Measures and Participant Incentives List in the Program Rules corresponding to the Eligible Custom Measure(s)  installed, implemented or undertaken and completed at the Project up  to 50% of the aggregate costs, without duplication, for machinery, equipment, parts, fixtures and accessories and appurtenances, but specifically excluding: (1) any related labour costs, with respect to the installation of any of the foregoing, as applicable, and (2) applicable HST; in each case, directly related to the procurement and installation, implementation or undertaking and completion, as the case may be, of the Eligible Custom Measures (the “Custom Incentive”); and \niii) with respect to any Performance Based Component, the Participant Incentive amount(s) set out in the Eligible Measures and Participant Incentives List in the Program Rules corresponding to the Eligible Performance Based Measure(s) that was (were) achieved at the Project (the “Performance Based Incentive”)."]
[null,"(b) All payments hereunder will be made in Canadian dollars by cheque or by electronic funds transfer. "]
[null,"(c) In addition to the Incentive(s), the LDC will be obligated to pay the taxes, if any, imposed under Part IX of the Excise Tax Act (Canada) on such Incentive(s) if it is determined that such taxes are applicable.  If it is so determined that such taxes are payable, the Applicant will provide to the LDC sufficient supporting documentation, as requested by LDC, to facilitate and support the IESO in claiming input tax credits in respect of taxes paid on the Incentive Payment(s).  In addition, if the LDC has reasonable grounds to challenge the validity of the taxes imposed on the Incentive Payment(s), the Applicant will provide all reasonable assistance to the LDC with such challenge. "]
[]
[null,"4. Incentive Eligibility:  "]
[null,"(a) In addition to the applicable Eligibility Criteria, the Applicant will not be eligible to receive the applicable  Incentive(s) unless and until:"]
[null,null,"(i) the Project has passed  the formal occupancy inspection conducted by the applicable municipality and that the building meets the minimum occupancy requirements of the Ontario Building Code and/or an occupancy permit has been issued by the applicable municipality;\n(ii) the LDC has completed any site visit (if applicable); \n(iii) the Final Application is complete and contains all the supporting documentation;\n(iv) with respect to the Performance Based Component, the Applicant has submitted (x) an “EnerGuide Energy Efficiency Evaluation Report” signed by a qualified energy advisor confirming a final rating for the subject home of 83 or higher performance rating or (y) an “ENERGY STAR® Qualified New Home Version 12.3 Certificate” signed by a qualified energy advisor confirming that the subject home meets the ENERGY STAR for New Homes guidelines for energy efficiency as established by Natural Resources Canada, and further confirming the Eligible Performance Based Measure applied for in the Applicant’s Final Application; and\n(v) with respect to the Custom Component, the Applicant has submitted all receipt(s) as evidence of the purchase of the Eligible Custom Measure(s) and the LDC has verified that the Eligible Custom Measure(s) were carried out in accordance with the Final Application.  "]
[null,"(b) All of the Prescriptive Measure(s), Performance Based Measure(s) and/or Custom Measure(s) must be installed, implemented or undertaken and completed prior to the occupancy of the Project so that a site visit can be performed by or on behalf of the LDC, if required by the LDC."]
[null,"(c) Notwithstanding any other provision herein, no Incentive Payment will be made to any Applicant that has not satisfied all of the applicable Eligibility Criteria in Schedule B.  "]
[]
[null,"5. Term:   Subject to those provisions that will survive termination, this Agreement will terminate on the earliest of:  "]
[null,"(a) the date of the Incentive Payment(s) pursuant to Section 3; \n(b) March 31, 2021, in the event that the Prescriptive Measure(s), Performance Based Measure(s) and/or Custom Measure(s) was (were) not installed, implemented or undertaken and completed on or before December 31, 2020; and\n(c) March 31, 2021, provided that the Prescriptive Measure(s), Performance Based Measure(s) and/or Custom Measure(s) was (were) installed, implemented or undertaken and completed on or before December 31, 2020.  "]
[]
[null,"6. Environmental Attributes:  All right, title and interest in and to all benefits or entitlements associated with decreased environmental impacts now or in the future, direct or indirect, arising as a result of, relating to or in connection with the electricity savings for which an Incentive has been paid, and the right to quantify and register these, including any energy efficiency certificate, renewable energy certificate, credit, reduction right, offset, allocated pollution right, emission reduction allowance (collectively, the “Environmental Attributes”) are hereby transferred and assigned by the Applicant to, or to the extent transfer or assignment is not permitted, held in trust for, the IESO and its successors and assigns.  The IESO will be entitled, unilaterally and without the consent of the Applicant, to deal with such Environmental Attributes in any manner it determines. The Applicant acknowledges that the IESO or the LDC may direct the Applicant to take such actions and do all such things necessary to certify, obtain, qualify and register with the relevant authorities or agencies such Environmental Attributes for the purpose of transferring such Environmental Attributes to the IESO.  "]
[]
[null,"7. Evaluation, Monitoring and Verification; Audit:  The Applicant will participate in any surveys, studies, audits, evaluations or verifications conducted by the LDC or the IESO or their respective agents (collectively, the “Program Operators”) in connection with the Initiative, including for the purpose of proper administration, monitoring and verification of this Agreement or evaluation of the Initiative, and will provide to the Program Operators reasonable access to the Applicant’s records and premises for such purposes."]
[]
[null,"8. No Warranty: Except as specifically set forth or referenced in this Agreement, there are no representations, warranties, or conditions of either party to this Agreement, express, implied, statutory or otherwise, regarding any matter, including any implied warranties or conditions of quality, workmanship, safety, legal compliance or fitness for a particular purpose.  Without limiting the generality of the foregoing, the Applicant acknowledges that its participation in the Initiative is based upon its own assessment of the Initiative and not on any reliance on anticipated or projected results, and that such participation may not result in the achievement of any electricity savings, which is expressly disclaimed by the Applicant."]
[]
[null,"9. Limitation of Liability:  Notwithstanding anything contained herein to the contrary, in no event will either party to this Agreement be entitled to recover for any liabilities, damages, obligations, payments, losses, costs, expenses under this Agreement, any amount in excess of the actual compensatory direct damages, court costs and reasonable fees suffered or incurred by such party, and neither party will be liable for any special, indirect, incidental, punitive, exemplary or consequential damages, loss of profits, loss of use of any property or claims of customers or contractors of a party for any such damages which may arise under or in relation to this Agreement, regardless whether such liability arises under contract, tort or any other legal theory."]
[]
[null,"10. Miscellaneous:  Except as otherwise provided, this Agreement and the Preliminary Application constitutes the entire agreement between the parties hereto in connection with its subject matter and supersedes all prior representations, communications, negotiations and understandings, whether oral, written, express or implied, concerning the subject matter of this Agreement.  The Agreement may not be varied, amended or supplemented except by an agreement in writing signed by both of the parties hereto.  The Agreement will be governed by and construed in accordance with the laws of the Province of Ontario and the federal laws of Canada applicable therein.  This Agreement will enure to the benefit of and be binding upon the parties hereto and their respective successors and permitted assigns.  This Agreement will not be assigned by the Applicant to another person other than an affiliate except with the prior written consent of the LDC, which consent may not be unreasonably withheld or delayed.  Each of the parties hereto will, from time to time, on written request of the other party, do all such further acts and execute and deliver or cause to be done, executed and delivered all such further things as may be reasonably required in order to fully perform and to more effectively implement the terms of this Agreement.  The invalidity, unenforceability or illegality of any provision in this Agreement will not, to the extent permitted by applicable law, affect the validity, enforceability or legality of any other provision of this Agreement, which will remain in full force and effect.  The insertion of headings is for convenience of reference only and will not affect the interpretation of this Agreement.  Any reference in this Participant Agreement to the terms “hereof”, “hereunder” and similar expressions refer to this Participant Agreement and not to any particular Section or other part of this Participant Agreement.  Unless otherwise indicated, any reference in this Participant Agreement to a Section or Schedule refers to the specified section of or schedule to this Participant Agreement.  The word “including” means “including without limitation”, and the words “include” and “includes” have a corresponding meaning."]
[]
[null,"11. Third Party Beneficiaries:  Except as provided in Sections 3(a)(i), 3(b), 3(c), 6, 7 and 11 of this Participant Agreement, and Sections 7, 8 and 9 of the Final Application, this Agreement is solely for the benefit of:\n(a) the LDC, and its successors and assigns, with respect to the obligations of the Applicant under this Agreement, and\n(b) the Applicant, and its successors and permitted assigns, with respect to the obligations of the LDC under this Agreement;\nand this Agreement will not be deemed to confer upon or give to any other person any claim or other right or remedy.  The Applicant appoints the LDC as the trustee for the IESO of the applicable provisions set out in this Agreement, including Sections 3(a)(i), 3(b), 3(c), 6, 7 and 11 of this Participant Agreement, and Sections 7, 8 and 9 of the Final Application, and the LDC accepts such appointment."]
[]
[null,"12. Facsimile/Electronic Signatures:  This Agreement may be executed and delivered by facsimile transmission or by any other method of electronic execution and the parties may rely upon all such signatures as though such signatures were original signatures."]
[]
[null,"13. Consent: \n(a) If the Applicant wishes the LDC to communicate with it by email in connection with future conservation programs, customer satisfaction surveys and other related purposes, initial here________. The Applicant may withdraw its consent anytime. The Applicant may contact Hydro One Networks Inc. at RNCSupport@hydroone.com.\n(b) If the Applicant wishes the IESO to communicate with it by email in connection with future conservation program, customer satisfaction surveys and other purposes, initial here________. The Applicant may withdraw its consent at anytime. The Applicant may contact the IESO at 120 Adelaide Street W, Suite 1600, Toronto, ON M5H 1T1 or customer.relations@ieso.ca on whose behalf the LDC is requesting this confirmation. \n"]
[]
[null,"Certification Statement"]
[]
[null,"I, the Applicant, or an authorized signatory of the Applicant, hereby certifies, represents and warrants that:"]
[]
[null,"1. all information in this Final Application, including all attached documentation, is true, complete and accurate, and the Applicant has invoices supporting the purchase and costs of all Eligible Prescriptive Measures and all Eligible Custom Measures;"]
[]
[null,"2. the building(s) or  premises where the Prescriptive Measure(s), Performance Based Measure(s) and/or Custom Measure(s) have been implemented is/are a customer of the LDC;"]
[]
[null,"3. it would not otherwise have undertaken the Prescriptive Measure(s), Performance Based Measure(s) and/or Custom Measure(s)  without the financial support and participation of the LDC;"]
[]
[null,"4. all of the applicable Eligibility Criteria have been satisfied; "]
[]
[null,"5. it understands and agrees to the terms and conditions set forth in this Final Application; "]
[]
[null,"6. it understands and agrees that if this Final Application is accepted by the LDC, the Applicant will be bound by the Agreement; "]
[]
[null,"7. it understands and agrees that by submitting this Final Application, whether or not this Final Application is accepted: \n(a) it hereby consents to the collection, use, disclosure and other handling of any information it provides to the Program Operators (whether pursuant to this Final Application or any Participant Agreement), including, without limitation, personal information (if applicable) and records showing historical energy use and consumption (if any) (the “Participant Information”) by the Program Operators for purposes relating to the operation, administration or assessment of the Initiative or this Final Application or any Participant Agreement, and in connection with any reporting activities relating to the Initiative, which will include, without limitation: \n(i) sharing of Participant Information among the Program Operators; \n(ii) use by the Program Operators of the Participant Information provided by the Applicant to conduct, analyze and report on the results of surveys and modify the Initiative based on such surveys; and \n(iii) disclosure to the Ontario Energy Board, the Ontario Ministry of Energy or the Ontario Environmental Commissioner or their respective successors; and \n(b) it will indemnify and save harmless each of the Program Operators and their respective directors, officers and employees from any and all liability and all claims, losses, damages (including indirect or consequential damages), expenses and proceedings for personal injury (including death) or property damage of any person relating to, in connection with, resulting from, or arising out of the Initiative, including, without limitation, by reason of the actual or alleged implementation of any Prescriptive Measure(s), Performance Based Measure(s) and/or Custom Measure(s) and its operation or any other matter contemplated by this Final Application or any Participant Agreement; "]
[]
[null,"8. it understands and agrees that all right, title and interest in and to all benefits or entitlements associated with decreased environmental impacts now or in the future, direct or indirect, arising as a result of, relating to or in connection with the electricity savings for which an Incentive has been paid, and the right to quantify and register these, including any energy efficiency certificate, renewable energy certificate, credit, reduction right, offset, allocated pollution right, emission reduction allowance (collectively, the “Environmental Attributes”) are hereby transferred and assigned by the Applicant to, or to the extent transfer or assignment is not permitted, held in trust for, the LDC and its successors and assigns.  The LDC will be entitled, unilaterally and without the consent of the Applicant, to deal with such Environmental Attributes in any manner it determines.  The Applicant acknowledges that the LDC has further transferred and assigned to the IESO,  or may further transfer and assign to the IESO, such Environmental Attributes and that the IESO may direct the Applicant in the same manner as the LDC and that the IESO or the LDC may direct the Applicant to take such actions and do all such things necessary to certify, obtain, qualify and register with the relevant authorities or agencies such Environmental Attributes for the purpose of transferring such Environmental Attributes to the IESO; and"]
[]
[null,"9. it understands and agrees that, except as provided in Sections 7 and 8 above, this Final Application is solely for the benefit of: (a) the LDC, and its successors and assigns, with respect to the obligations of the Applicant under this Final Application, and (b) the Applicant, and its successors and permitted assigns, with respect to any obligations of the LDC under this Final Application; and this Final Application will not be deemed to confer upon or give to any other person any claim or other right or remedy.  The Applicant appoints the LDC as the trustee for the IESO of the applicable provisions set out in this Final Application, including Sections 7 and 8 above, and the LDC accepts such appointment."]
[]
[null,"Applicant Declaration"]
[]
[null,"I, the Applicant, certify that I understand and agree to the terms and conditions as set forth above in this Agreement."]
[]
[null,"Full Name (please print) ",null,null,null,null,null,null,"Title of Authorized Signatory"]
[]
[null,"Signed on behalf of the Applicant",null,null,null,null,null,null,"Date (DD / MM / YYYY) "]

{"sheet":"Schedule A - Defined Terms","index":3,"n_rows":69,"n_cols":2,"rows_kept":69,"cut":false,"hidden":false,"merged":[[24,1,24,13],[46,1,46,13],[36,1,36,13],[38,1,38,13],[40,1,40,13],[30,1,30,13],[32,1,32,13],[34,1,34,13],[26,1,26,13],[28,1,28,13],[1,1,1,13],[5,1,5,13],[6,1,6,13],[8,1,8,13],[18,1,18,13],[2,1,2,13],[4,1,4,13],[68,1,68,13],[62,1,62,13],[64,1,64,13],[66,1,66,13],[56,1,56,13],[58,1,58,13],[60,1,60,13],[50,1,50,13],[52,1,52,13],[54,1,54,13],[42,1,42,13],[44,1,44,13],[48,1,48,13],[20,1,20,13],[22,1,22,13],[10,1,10,13],[12,1,12,13],[14,1,14,13],[16,1,16,13]]}
[]
[null,"RESIDENTIAL NEW CONSTRUCTION PROGRAM"]
[null,"SCHEDULE A - DEFINED TERMS"]
[]
[null,"All capitalized terms used but not defined in this Agreement have the meanings given to them in the saveONenergy New Construction Program Rules or the Energy Conservation Agreement between the LDC and the IESO, as applicable. \nThe following terms have the meanings stated below when used in the Agreement:"]
[]
[null,"“Additional Eligibility Criteria” means the requirements set out in Section 1 of Schedule “B” under the heading “Additional Eligibility Criteria”.  "]
[]
[null,"“Agreement” has the meaning given to it on the first page of the Application."]
[]
[null,"“Applicant” has the meaning given to it in the Application."]
[]
[null,"“Applicant Eligibility Criteria” means the criteria set out in Section 2 of Schedule “B” under the heading “Applicant Eligibility Criteria”.  "]
[]
[null,"“Approved Final Application” means a Final Application that has been reviewed and approved, on a final basis, by the LDC."]
[]
[null,"“Custom Component” means the component of the Initiative that provides Custom Incentives to Applicants who install, implement or undertake and complete Eligible Custom Measures in the Project."]
[]
[null,"“Custom Incentive” has the meaning given to it in Section 3(a)(ii)."]
[]
[null,"“Custom Measure” means a measure identified in the Application as a “Custom Measure.”"]
[]
[null,"“Eligibility Criteria” means, collectively, (i) the Home Builder Eligibility Criteria, the Project Eligibility Criteria, the Additional Eligibility Criteria, and (ii) the criteria that a Prescriptive Measure, Performance Based Measure and Custom Measure must satisfy to be an Eligible Prescriptive Measure, Eligible Performance Based Measure and Eligible Custom Measure, respectively, and in each case as set out in the Eligible Measures and Incentives List.  "]
[]
[null,"“Eligible Home Builder” means a home builder or renovator who satisfies all of the Home Builder Eligibility Criteria in Schedule 2."]
[]
[null,"“Environmental Attributes” has the meaning given to it in Section 8 of the certification statement or Section 6 of the Participant Agreement, as the context requires."]
[]
[null,"“Final Application” means the application to which this Participant Agreement is attached."]
[]
[null,"“HST” means all taxes payable under Part IX of the Excise Tax Act (Canada).  "]
[]
[null,"“IESO” means the Independent Electricity System Operator or its successor."]
[]
[null,"“Incentive Payment” means a Prescriptive Incentive, Performance Based Incentive and/or Custom Incentive payable by the LDC to the Applicant pursuant to the Approved Final Application and the corresponding Participant Agreement (if any). "]
[]
[null,"“Incentives” means, collectively, the Prescriptive Incentives, the Custom Incentives and the Performance Based Incentives.  "]
[]
[null,"“Initiative” means the Residential New Construction Program offered by the LDC under the Conservation First Framework.  "]
[]
[null,"“LDC” has the meaning given to it on the first page of the Preliminary and Final Application."]
[]
[null,"“Ontario Building Code” means the “building code” as defined in the Building Code Act, 1992 (Ontario)."]
[]
[null,"“Participant” means an Eligible Home Builder who has (i) submitted a Final Application, including supporting documentation, which has been approved by the LDC; (ii) agreed to the terms and conditions in the Participant Agreement, and (iii) satisfied all applicable Eligibility Criteria.  "]
[]
[null,"“Participant Agreement” means this Participant Agreement, including all Schedules, as it or they may be amended, restated or supplemented from time to time, to be executed by a Participant and to be submitted to the LDC at the same time as the Final Application, which will become binding upon the Participant if the Final Application is approved by the LDC."]
[]
[null,"“Participant Information” has the meaning given to it in Section 7 of the certification statement."]
[]
[null,"“Performance Based Component” means the component of the Initiative that provides Performance Based Incentives to Applicants who install, implement or undertake and complete Eligible Performance Based Measures in the Project."]
[]
[null,"“Performance Based Incentive” has the meaning given to it in Section 3(a)(iii).  "]
[]
[null,"“Performance Based Measure” means a measure identified in the Application as a “Performance Based Measure.”"]
[]
[null,"“Preliminary Application” means the preliminary application, as amended, that was submitted by the Applicant for approval, on a preliminary basis, by the LDC.  "]
[]
[null,"\"Prescriptive Component” means the component of the Initiative that provides Prescriptive Incentives to Applicants who install, implement or undertake and complete Eligible Prescriptive Measures in the Project."]
[]
[null,"“Prescriptive Incentive” has the meaning given to it in Section 3(a)(i)."]
[]
[null,"“Prescriptive Measure” means a measure identified in the Application as a “Prescriptive Measure.”"]
[]
[null,"“Program Operators” means, collectively, the LDC, the IESO and their respective agents and meaning given to it in Section 7."]
[]
[null,"“Project” means the residential new construction or major renovation project and/or the building or residence, as applicable, identified in the Application. "]
[]
[null,"“Project Eligibility Criteria” means the applicable criteria set out in Schedule “B” under the heading “Project Eligibility Criteria”.  "]

{"sheet":"Schedule B - Eligibility","index":4,"n_rows":15,"n_cols":3,"rows_kept":15,"cut":false,"hidden":false,"merged":[[13,1,13,13],[14,2,14,13],[15,1,15,13],[8,1,8,13],[10,1,10,13],[9,1,9,13],[11,1,11,13],[0,1,0,13],[1,1,1,13],[2,1,2,13],[4,1,4,13],[12,2,12,13],[5,1,5,13],[6,1,6,13],[7,1,7,13]]}
[]
[null,"RESIDENTIAL NEW CONSTRUCTION PROGRAM"]
[null,"SCHEDULE B - ELIGIBILITY REQUIREMENTS"]
[]
[null,"1. Additional Eligibility Criteria  "]
[null,"In addition to any other applicable criteria set out in the Application, for the Applicant to be eligible to receive an Incentive under the Initiative:\n(a) no Incentive Payment will have been previously paid to the Applicant for the same specifically-identified Prescriptive Measure(s), Performance Based Measure(s) and/or Custom Measure(s) installed, implemented or undertaken and completed at the same municipal address of the Project, whether through one or more applications; \n(b) the Project will not have received any other benefit, incentive, advantage or payment offered by another IESO-funded program (including discounts from coupons under other residential electricity conservation and demand management program initiatives);  \n(c) all requirements of the LDC with respect to the application process will have been satisfied; \n(d) the Applicant must have submitted to the LDC a Preliminary Application for pre-approval of the proposed Eligible Project that is the subject of such Preliminary Application prior to framing and purchasing, installing or otherwise undertaking and completing such Eligible Measure(s).  \n(e) the Applicant must have submitted the “EnerGuide Energy Efficiency Evaluation Report” or “ENERGY STAR® Qualified New Home Certificate” within six(6) months of the date of submission of the Final Application, and in any event, the Applicant must have submitted such occupancy permit on or before December 31, 2020 and such “EnerGuide Energy Efficiency Evaluation Report” or “ENERGY STAR® Qualified New Home Certificate” (Version 12.7 or later) on or before December 31, 2020;  \n(f) no Eligible Project may have been commenced prior to January 1, 2015; \n(g) the approved Eligible Project must have been installed, implemented or undertaken and completed (i.e., fully installed, implemented or undertaken and completed and ready for service) by December 31, 2020; and\n(h) the Preliminary Application must be submitted to the LDC no later than December 19, 2018, and the submitted Approved Preliminary Application of each Eligible Home Builder will have become an Approved Final Application."]
[]
[null,"2. Home Builder Eligibility Criteria "]
[null,"(a) To be an Eligible Home Builder under the Initiative, the Applicant must be a home builder or renovator, as the case may be..  \n(b) If the Applicant is a corporation, it must also provide a certificate of status. \n(c) If the Applicant is limited liability partnership, it must also provide a copy of its filed limited liability partnership declaration."]
[]
[null,"3. Project Eligibility Criteria "]
[null,"To be an Eligible Project under the Initiative, a Project must:\n(a) be in respect of a residential new construction project that satisfies all of the following criteria: \n"]
[null,null,"(i) the building or all buildings will be located in Ontario;\n(ii) the building or all buildings will be compliant with Part 9 of the Ontario Building Code;\n(iii) the building or all buildings will have three or fewer storeys in building height; \n(iv) the building or all buildings will have an area not exceeding 600 m²; \n(v) the building or all buildings will be used for residential occupancies (occupancy or use of a building, or a partial building, by persons for whom sleeping accommodation is provided but who are not harboured or detained there to receive medical care or treatment or who are not involuntarily detained there); provided that site assembled and factory built homes are eligible if they have a foundation and involve some site assembly; \n(vi) the building or all buildings do not include (A) a manufactured home with a chassis, (B) a residential building with four or more floors or (C) a residential building with a footprint larger than 600 m²; \n(vii) the building or all buildings require a building permit; and\n(viii) the building or all buildings is/are connected, or will be connected once the new construction project is installed, implemented or undertaken and completed, to the LDC’s distribution system; or"]
[null,"(b) be in respect of an extensive renovation to existing buildings project that satisfies all of the following criteria: "]
[null,null,"(i) the renovated building(s) is/are already constructed and is compliant with Section 3(a)(i), (iii), (iv) and (v) of this Schedule “B”; \n(ii) it/they comply with the following:\n    A. the existing interior walls, ceiling or floor assemblies within the renovated area of the building     \n    (in this Section, the “suite”, which refers to the renovated area of the building) are substantially \n    removed in an existing building; \n    B. new interior walls or floor assemblies are installed; \n    C. replacement of one or more systems (which include framing, exterior cladding, roofing, \n    windows, heating ventilation or air conditioning, foundation, flooring or plumbing systems); \n    D. the suite has an area greater than 50 m2; and\n    E. the renovation within the suite results in the suite being unable to be occupied for a minimum \n    of 30 days; \n(iii) it requires a building permit(s); and\n(iv) the renovated building(s) is/are connected, or will be connected once the renovation project is installed, implemented or undertaken and completed, to the LDC’s distribution system.  "]

{"sheet":"Measure Assumptions","index":5,"n_rows":18,"n_cols":5,"rows_kept":18,"cut":false,"hidden":false,"merged":[]}
["Track","Measure","Energy Savings (kWh)","Demand Savings (kW)","Incentive"]
["Performance Based","EnerGuide 83 or 84 homes",1885,8.8999999999999996E-2,500]
["Performance Based","EnerGuide 85 or better homes",3100,0.14699999999999999,1000]
["Performance Based","ENERGY STAR® qualified homes",1885,8.8999999999999996E-2,500]
["Prescriptive","All Off Switch",53,4.0000000000000001E-3,50]
["Prescriptive","ENERGY STAR Qualified Light Fixture - 1 or 2 Sockets",125,4.0000000000000001E-3,3]
["Prescriptive","ENERGY STAR qualified light fixture - 3 or more sockets",251,8.0000000000000002E-3,10]
["Prescriptive","ENERGY STAR qualified recessed lighting",32,1E-3,5]
["Prescriptive","ENERGY STAR qualified under the counter lighting",32,1E-3,5]
["Prescriptive","ENERGY STAR qualified LED",32,1E-3,5]
["Prescriptive","Gas Furnace with ECM",971,0.56699999999999995,50]
["Prescriptive","Electric Furnace with ECM",307,0.55700000000000005,50]
["Prescriptive","SEER 15 Central Air Conditioner",133,0.14599999999999999,30]
["Prescriptive","Dimmer Switch",24,1E-3,3]
["Prescriptive","Indoor Lighting Timer",219,7.0000000000000001E-3,3]
["Prescriptive","Indoor Motion Sensor",64,2E-3,3]
["Prescriptive","Outdoor Lighting Timer",68,0,3]
["Prescriptive","Outdoor Motion Sensor",159,0,3]

{"sheet":"Version Control","index":6,"n_rows":7,"n_cols":2,"rows_kept":7,"cut":false,"hidden":true,"merged":[]}
[]
["Version Number ",4]
["Month","August "]
["Day ",21]
["Year ",2013]
[]
["Make sure to update the version number on the footer as there is no Excel function that can currently do this automatically "]

{"sheet":"Program Activity Information","index":7,"n_rows":2,"n_cols":24,"rows_kept":2,"cut":false,"hidden":true,"merged":[]}
["LDC_Name","Program_Name","Funding_ Mechanism","Application_ID","Company name","Applicant_First_Name","Applicant_Last_Name","Applicant_PrimaryPhone","Applicant_EmailAddress","Application_SubmissionDate\nMM/DD/YYYY","How_did_the_participant_hear_about_this_program? ","Facility_LDC","Rate_Class","Building_Type","Building_Address_Line1","Building_Address_Line2","Building_Address_Line3","Building_Address_City","Building_Address_PostalCode","Project_Start_Date\nMM/DD/YYYY","Project_Completion_Date\nMM/DD/YYYY","Incentive_Amount_Eligible","Reference_Number","Reference_Date\nMM/DD/YYYY"]
[{"$f":"'Final App Worksheet'!$J$7","v":""},"New Construction Program","Full Cost Recovery",null,{"$f":"'Final App Worksheet'!$B$9","v":""},{"$f":"'Final App Worksheet'!$B$13","v":""},{"$f":"'Final App Worksheet'!$B$14","v":""},{"$f":"'Final App Worksheet'!$B$15","v":""},{"$f":"'Final App Worksheet'!$B$16","v":""},{"$f":"'Final App Worksheet'!H7","v":"00:00:00"},null,{"$f":"'Final App Worksheet'!$J$7","v":""},null,null,{"$f":"'Final App Worksheet'!$B$19","v":""},null,null,{"$f":"'Final App Worksheet'!$B$20","v":""},{"$f":"'Final App Worksheet'!$D$20","v":""},{"$f":"'Final App Worksheet'!$B$27","v":"00:00:00"},{"$f":"'Final App Worksheet'!$B$28","v":"00:00:00"},{"$f":"'Final App Worksheet'!$D$59","v":0}]

{"sheet":"Program Activity Measures EE","index":8,"n_rows":20,"n_cols":23,"rows_kept":20,"cut":false,"hidden":true,"merged":[]}
["LDC_Name","Program_Name","Funding_ Mechanism","Application_ID","Facility_LDC","Phase_ID","Measure_Name","Project_Track","Measure_ID","Measure_End_Use_Category","Measure_Type","Measure_Description \n(Custom Only)","Measure_EUL","Number_of_Units","Base_Measure","Project_Completion_Date\nMM/DD/YYYY","Total_Costs_of_Project","Incremental_Equipment_Cost","Gross_Energy_Savings(kWh)","Gross_Demand_Saving","Incentive_Amount","Invoice_Number","Invoice_Date\nMM/DD/YYYY"]
[{"$f":"'Final App Worksheet'!$J$7","v":""},"New Construction Program","Full Cost Recovery",{"$f":"'Final App Worksheet'!$B$18","v":""},{"$f":"'Final App Worksheet'!$J$7","v":""},null,{"$f":"IF(OR('Final App Worksheet'!$C$41<>\"\",'Final App Worksheet'!$C$42<>\"\",'Final App Worksheet'!$C$43<>\"\",'Final App Worksheet'!$C$44<>\"\",'Final App Worksheet'!$C$45<>\"\"),'Final App Worksheet'!$C$39,\"\")","v":""},"Prescriptive",null,null,null,null,null,{"$f":"'Final App Worksheet'!$B$41*'Final App Worksheet'!C41+'Final App Worksheet'!$B$42*'Final App Worksheet'!C42+'Final App Worksheet'!$B$43*'Final App Worksheet'!C43+'Final App Worksheet'!$B$44*'Final App Worksheet'!C44+'Final App Worksheet'!$B$45*'Final App Worksheet'!C45","v":0},null,{"$f":"'Final App Worksheet'!$B$28","v":"00:00:00"},{"$f":"+U2*2","v":0},{"$f":"Q2","v":0},{"$f":"VLOOKUP(G2,'Measure Assumptions'!B:C,2,FALSE)*'Program Activity Measures EE'!N2","v":{"$error":"#N/A"}},{"$f":"VLOOKUP(G2,'Measure Assumptions'!B:D,3,FALSE)*'Program Activity Measures EE'!N2","v":{"$error":"#N/A"}},{"$f":"'Final App Worksheet'!$C$46","v":0}]
[{"$f":"'Final App Worksheet'!$J$7","v":""},"New Construction Program","Full Cost Recovery",{"$f":"'Final App Worksheet'!$B$18","v":""},{"$f":"'Final App Worksheet'!$J$7","v":""},null,{"$f":"IF(OR('Final App Worksheet'!$D$41<>\"\",'Final App Worksheet'!$D$42<>\"\",'Final App Worksheet'!$D$43<>\"\",'Final App Worksheet'!$D$44<>\"\",'Final App Worksheet'!$D$45<>\"\"),'Final App Worksheet'!$D$39,\"\")","v":""},"Prescriptive",null,null,null,null,null,{"$f":"'Final App Worksheet'!$B$41*'Final App Worksheet'!D41+'Final App Worksheet'!$B$42*'Final App Worksheet'!D42+'Final App Worksheet'!$B$43*'Final App Worksheet'!D43+'Final App Worksheet'!$B$44*'Final App Worksheet'!D44+'Final App Worksheet'!$B$45*'Final App Worksheet'!D45","v":0},null,{"$f":"'Final App Worksheet'!$B$28","v":"00:00:00"},{"$f":"+U3*2","v":0},{"$f":"Q3","v":0},{"$f":"VLOOKUP(G3,'Measure Assumptions'!B:C,2,FALSE)*'Program Activity Measures EE'!N3","v":{"$error":"#N/A"}},{"$f":"VLOOKUP(G3,'Measure Assumptions'!B:D,3,FALSE)*'Program Activity Measures EE'!N3","v":{"$error":"#N/A"}},{"$f":"'Final App Worksheet'!$D$46","v":0}]
[{"$f":"'Final App Worksheet'!$J$7","v":""},"New Construction Program","Full Cost Recovery",{"$f":"'Final App Worksheet'!$B$18","v":""},{"$f":"'Final App Worksheet'!$J$7","v":""},null,{"$f":"IF(OR('Final App Worksheet'!$E$41<>\"\",'Final App Worksheet'!$E$42<>\"\",'Final App Worksheet'!$E$43<>\"\",'Final App Worksheet'!$E$44<>\"\",'Final App Worksheet'!$E$45<>\"\"),'Final App Worksheet'!$E$39,\"\")","v":""},"Prescriptive",null,null,null,null,null,{"$f":"'Final App Worksheet'!$B$41*'Final App Worksheet'!E41+'Final App Worksheet'!$B$42*'Final App Worksheet'!E42+'Final App Worksheet'!$B$43*'Final App Worksheet'!E43+'Final App Worksheet'!$B$44*'Final App Worksheet'!E44+'Final App Worksheet'!$B$45*'Final App Worksheet'!E45","v":0},null,{"$f":"'Final App Worksheet'!$B$28","v":"00:00:00"},0,0,{"$f":"VLOOKUP(G4,'Measure Assumptions'!B:C,2,FALSE)*'Program Activity Measures EE'!N4","v":{"$error":"#N/A"}},{"$f":"VLOOKUP(G4,'Measure Assumptions'!B:D,3,FALSE)*'Program Activity Measures EE'!N4","v":{"$error":"#N/A"}},{"$f":"'Final App Worksheet'!$E$46","v":0}]
[{"$f":"'Final App Worksheet'!$J$7","v":""},"New Construction Program","Full Cost Recovery",{"$f":"'Final App Worksheet'!$B$18","v":""},{"$f":"'Final App Worksheet'!$J$7","v":""},null,{"$f":"IF(OR('Final App Worksheet'!$F$41<>\"\",'Final App Worksheet'!$F$42<>\"\",'Final App Worksheet'!$F$43<>\"\",'Final App Worksheet'!$F$44<>\"\",'Final App Worksheet'!$F$45<>\"\"),'Final App Worksheet'!$F$39,\"\")","v":""},"Prescriptive",null,null,null,null,null,{"$f":"'Final App Worksheet'!$B$41*'Final App Worksheet'!F41+'Final App Worksheet'!$B$42*'Final App Worksheet'!F42+'Final App Worksheet'!$B$43*'Final App Worksheet'!F43+'Final App Worksheet'!$B$44*'Final App Worksheet'!F44+'Final App Worksheet'!$B$45*'Final App Worksheet'!F45","v":0},null,{"$f":"'Final App Worksheet'!$B$28","v":"00:00:00"},0,0,{"$f":"VLOOKUP(G5,'Measure Assumptions'!B:C,2,FALSE)*'Program Activity Measures EE'!N5","v":{"$error":"#N/A"}},{"$f":"VLOOKUP(G5,'Measure Assumptions'!B:D,3,FALSE)*'Program Activity Measures EE'!N5","v":{"$error":"#N/A"}},{"$f":"'Final App Worksheet'!$F$46","v":0}]
[{"$f":"'Final App Worksheet'!$J$7","v":""},"New Construction Program","Full Cost Recovery",{"$f":"'Final App Worksheet'!$B$18","v":""},{"$f":"'Final App Worksheet'!$J$7","v":""},null,{"$f":"IF(OR('Final App Worksheet'!$G$41<>\"\",'Final App Worksheet'!$G$42<>\"\",'Final App Worksheet'!$G$43<>\"\",'Final App Worksheet'!$G$44<>\"\",'Final App Worksheet'!$G$45<>\"\"),'Final App Worksheet'!$G$39,\"\")","v":""},"Prescriptive",null,null,null,null,null,{"$f":"'Final App Worksheet'!$B$41*'Final App Worksheet'!G41+'Final App Worksheet'!$B$42*'Final App Worksheet'!G42+'Final App Worksheet'!$B$43*'Final App Worksheet'!G43+'Final App Worksheet'!$B$44*'Final App Worksheet'!G44+'Final App Worksheet'!$B$45*'Final App Worksheet'!G45","v":0},null,{"$f":"'Final App Worksheet'!$B$28","v":"00:00:00"},0,0,{"$f":"VLOOKUP(G6,'Measure Assumptions'!B:C,2,FALSE)*'Program Activity Measures EE'!N6","v":{"$error":"#N/A"}},{"$f":"VLOOKUP(G6,'Measure Assumptions'!B:D,3,FALSE)*'Program Activity Measures EE'!N6","v":{"$error":"#N/A"}},{"$f":"'Final App Worksheet'!$G$46","v":0}]
[{"$f":"'Final App Worksheet'!$J$7","v":""},"New Construction Program","Full Cost Recovery",{"$f":"'Final App Worksheet'!$B$18","v":""},{"$f":"'Final App Worksheet'!$J$7","v":""},null,{"$f":"IF(OR('Final App Worksheet'!$H$41<>\"\",'Final App Worksheet'!$H$42<>\"\",'Final App Worksheet'!$H$43<>\"\",'Final App Worksheet'!$H$44<>\"\",'Final App Worksheet'!$H$45<>\"\"),'Final App Worksheet'!$H$39,\"\")","v":""},"Prescriptive",null,null,null,null,null,{"$f":"'Final App Worksheet'!$B$41*'Final App Worksheet'!H41+'Final App Worksheet'!$B$42*'Final App Worksheet'!H42+'Final App Worksheet'!$B$43*'Final App Worksheet'!H43+'Final App Worksheet'!$B$44*'Final App Worksheet'!H44+'Final App Worksheet'!$B$45*'Final App Worksheet'!H45","v":0},null,{"$f":"'Final App Worksheet'!$B$28","v":"00:00:00"},0,0,{"$f":"VLOOKUP(G7,'Measure Assumptions'!B:C,2,FALSE)*'Program Activity Measures EE'!N7","v":{"$error":"#N/A"}},{"$f":"VLOOKUP(G7,'Measure Assumptions'!B:D,3,FALSE)*'Program Activity Measures EE'!N7","v":{"$error":"#N/A"}},{"$f":"'Final App Worksheet'!$H$46","v":0}]
[{"$f":"'Final App Worksheet'!$J$7","v":""},"New Construction Program","Full Cost Recovery",{"$f":"'Final App Worksheet'!$B$18","v":""},{"$f":"'Final App Worksheet'!$J$7","v":""},null,{"$f":"IF(OR('Final App Worksheet'!$I$41<>\"\",'Final App Worksheet'!$I$42<>\"\",'Final App Worksheet'!$I$43<>\"\",'Final App Worksheet'!$I$44<>\"\",'Final App Worksheet'!$I$45<>\"\"),'Final App Worksheet'!$I$39,\"\")","v":""},"Prescriptive",null,null,null,null,null,{"$f":"'Final App Worksheet'!$B$41*'Final App Worksheet'!I41+'Final App Worksheet'!$B$42*'Final App Worksheet'!I42+'Final App Worksheet'!$B$43*'Final App Worksheet'!I43+'Final App Worksheet'!$B$44*'Final App Worksheet'!I44+'Final App Worksheet'!$B$45*'Final App Worksheet'!I45","v":0},null,{"$f":"'Final App Worksheet'!$B$28","v":"00:00:00"},0,0,{"$f":"VLOOKUP(G8,'Measure Assumptions'!B:C,2,FALSE)*'Program Activity Measures EE'!N8","v":{"$error":"#N/A"}},{"$f":"VLOOKUP(G8,'Measure Assumptions'!B:D,3,FALSE)*'Program Activity Measures EE'!N8","v":{"$error":"#N/A"}},{"$f":"'Final App Worksheet'!$I$46","v":0}]
[{"$f":"'Final App Worksheet'!$J$7","v":""},"New Construction Program","Full Cost Recovery",{"$f":"'Final App Worksheet'!$B$18","v":""},{"$f":"'Final App Worksheet'!$J$7","v":""},null,{"$f":"IF(OR('Final App Worksheet'!$J$41<>\"\",'Final App Worksheet'!$J$42<>\"\",'Final App Worksheet'!$J$43<>\"\",'Final App Worksheet'!$J$44<>\"\",'Final App Worksheet'!$J$45<>\"\"),'Final App Worksheet'!$J$39,\"\")","v":""},"Prescriptive",null,null,null,null,null,{"$f":"'Final App Worksheet'!$B$41*'Final App Worksheet'!J41+'Final App Worksheet'!$B$42*'Final App Worksheet'!J42+'Final App Worksheet'!$B$43*'Final App Worksheet'!J43+'Final App Worksheet'!$B$44*'Final App Worksheet'!J44+'Final App Worksheet'!$B$45*'Final App Worksheet'!J45","v":0},null,{"$f":"'Final App Worksheet'!$B$28","v":"00:00:00"},0,0,{"$f":"VLOOKUP(G9,'Measure Assumptions'!B:C,2,FALSE)*'Program Activity Measures EE'!N9","v":{"$error":"#N/A"}},{"$f":"VLOOKUP(G9,'Measure Assumptions'!B:D,3,FALSE)*'Program Activity Measures EE'!N9","v":{"$error":"#N/A"}},{"$f":"'Final App Worksheet'!$J$46","v":0}]
[{"$f":"'Final App Worksheet'!$J$7","v":""},"New Construction Program","Full Cost Recovery",{"$f":"'Final App Worksheet'!$B$18","v":""},{"$f":"'Final App Worksheet'!$J$7","v":""},null,{"$f":"IF(OR('Final App Worksheet'!$K$41<>\"\",'Final App Worksheet'!$K$42<>\"\",'Final App Worksheet'!$K$43<>\"\",'Final App Worksheet'!$K$44<>\"\",'Final App Worksheet'!$K$45<>\"\"),'Final App Worksheet'!$K$39,\"\")","v":""},"Prescriptive",null,null,null,null,null,{"$f":"'Final App Worksheet'!$B$41*'Final App Worksheet'!K41+'Final App Worksheet'!$B$42*'Final App Worksheet'!K42+'Final App Worksheet'!$B$43*'Final App Worksheet'!K43+'Final App Worksheet'!$B$44*'Final App Worksheet'!K44+'Final App Worksheet'!$B$45*'Final App Worksheet'!K45","v":0},null,{"$f":"'Final App Worksheet'!$B$28","v":"00:00:00"},0,0,{"$f":"VLOOKUP(G10,'Measure Assumptions'!B:C,2,FALSE)*'Program Activity Measures EE'!N10","v":{"$error":"#N/A"}},{"$f":"VLOOKUP(G10,'Measure Assumptions'!B:D,3,FALSE)*'Program Activity Measures EE'!N10","v":{"$error":"#N/A"}},{"$f":"'Final App Worksheet'!$K$46","v":0}]
[{"$f":"'Final App Worksheet'!$J$7","v":""},"New Construction Program","Full Cost Recovery",{"$f":"'Final App Worksheet'!$B$18","v":""},{"$f":"'Final App Worksheet'!$J$7","v":""},null,{"$f":"IF(OR('Final App Worksheet'!$L$41<>\"\",'Final App Worksheet'!$L$42<>\"\",'Final App Worksheet'!$L$43<>\"\",'Final App Worksheet'!$L$44<>\"\",'Final App Worksheet'!$L$45<>\"\"),'Final App Worksheet'!$L$39,\"\")","v":""},"Prescriptive",null,null,null,null,null,{"$f":"'Final App Worksheet'!$B$41*'Final App Worksheet'!L41+'Final App Worksheet'!$B$42*'Final App Worksheet'!L42+'Final App Worksheet'!$B$43*'Final App Worksheet'!L43+'Final App Worksheet'!$B$44*'Final App Worksheet'!L44+'Final App Worksheet'!$B$45*'Final App Worksheet'!L45","v":0},null,{"$f":"'Final App Worksheet'!$B$28","v":"00:00:00"},0,0,{"$f":"VLOOKUP(G11,'Measure Assumptions'!B:C,2,FALSE)*'Program Activity Measures EE'!N11","v":{"$error":"#N/A"}},{"$f":"VLOOKUP(G11,'Measure Assumptions'!B:D,3,FALSE)*'Program Activity Measures EE'!N11","v":{"$error":"#N/A"}},{"$f":"'Final App Worksheet'!$L$46","v":0}]
[{"$f":"'Final App Worksheet'!$J$7","v":""},"New Construction Program","Full Cost Recovery",{"$f":"'Final App Worksheet'!$B$18","v":""},{"$f":"'Final App Worksheet'!$J$7","v":""},null,{"$f":"IF(OR('Final App Worksheet'!$M$41<>\"\",'Final App Worksheet'!$M$42<>\"\",'Final App Worksheet'!$M$43<>\"\",'Final App Worksheet'!$M$44<>\"\",'Final App Worksheet'!$M$45<>\"\"),'Final App Worksheet'!$M$39,\"\")","v":""},"Prescriptive",null,null,null,null,null,{"$f":"'Final App Worksheet'!$B$41*'Final App Worksheet'!M41+'Final App Worksheet'!$B$42*'Final App Worksheet'!M42+'Final App Worksheet'!$B$43*'Final App Worksheet'!M43+'Final App Worksheet'!$B$44*'Final App Worksheet'!M44+'Final App Worksheet'!$B$45*'Final App Worksheet'!M45","v":0},null,{"$f":"'Final App Worksheet'!$B$28","v":"00:00:00"},0,0,{"$f":"VLOOKUP(G12,'Measure Assumptions'!B:C,2,FALSE)*'Program Activity Measures EE'!N12","v":{"$error":"#N/A"}},{"$f":"VLOOKUP(G12,'Measure Assumptions'!B:D,3,FALSE)*'Program Activity Measures EE'!N12","v":{"$error":"#N/A"}},{"$f":"'Final App Worksheet'!$M$46","v":0}]
[{"$f":"'Final App Worksheet'!$J$7","v":""},"New Construction Program","Full Cost Recovery",{"$f":"'Final App Worksheet'!$B$18","v":""},{"$f":"'Final App Worksheet'!$J$7","v":""},null,{"$f":"IF(OR('Final App Worksheet'!$N$41<>\"\",'Final App Worksheet'!$N$42<>\"\",'Final App Worksheet'!$N$43<>\"\",'Final App Worksheet'!$N$44<>\"\",'Final App Worksheet'!$N$45<>\"\"),'Final App Worksheet'!$N$39,\"\")","v":""},"Prescriptive",null,null,null,null,null,{"$f":"'Final App Worksheet'!$B$41*'Final App Worksheet'!N41+'Final App Worksheet'!$B$42*'Final App Worksheet'!N42+'Final App Worksheet'!$B$43*'Final App Worksheet'!N43+'Final App Worksheet'!$B$44*'Final App Worksheet'!N44+'Final App Worksheet'!$B$45*'Final App Worksheet'!N45","v":0},null,{"$f":"'Final App Worksheet'!$B$28","v":"00:00:00"},0,0,{"$f":"VLOOKUP(G13,'Measure Assumptions'!B:C,2,FALSE)*'Program Activity Measures EE'!N13","v":{"$error":"#N/A"}},{"$f":"VLOOKUP(G13,'Measure Assumptions'!B:D,3,FALSE)*'Program Activity Measures EE'!N13","v":{"$error":"#N/A"}},{"$f":"'Final App Worksheet'!$N$46","v":0}]
[{"$f":"'Final App Worksheet'!$J$7","v":""},"New Construction Program","Full Cost Recovery",{"$f":"'Final App Worksheet'!$B$18","v":""},{"$f":"'Final App Worksheet'!$J$7","v":""},null,{"$f":"IF('Final App Worksheet'!B32<>\"\",\"ENERGY STAR® qualified homes\",\"\")","v":""},"Performance",null,null,null,null,null,{"$f":"'Final App Worksheet'!B32","v":0},null,{"$f":"'Final App Worksheet'!$B$28","v":"00:00:00"},0,0,{"$f":"VLOOKUP(G14,'Measure Assumptions'!B:C,2,FALSE)*'Program Activity Measures EE'!N14","v":{"$error":"#N/A"}},{"$f":"VLOOKUP(G14,'Measure Assumptions'!B:D,3,FALSE)*'Program Activity Measures EE'!N14","v":{"$error":"#N/A"}},{"$f":"'Final App Worksheet'!$D$32","v":0}]
[{"$f":"'Final App Worksheet'!$J$7","v":""},"New Construction Program","Full Cost Recovery",{"$f":"'Final App Worksheet'!$B$18","v":""},{"$f":"'Final App Worksheet'!$J$7","v":""},null,{"$f":"IF('Final App Worksheet'!B33<>\"\",\"EnerGuide 83 or 84 homes\",\"\")","v":""},"Performance",null,null,null,null,null,{"$f":"'Final App Worksheet'!B33","v":0},null,{"$f":"'Final App Worksheet'!$B$28","v":"00:00:00"},0,0,{"$f":"VLOOKUP(G15,'Measure Assumptions'!B:C,2,FALSE)*'Program Activity Measures EE'!N15","v":{"$error":"#N/A"}},{"$f":"VLOOKUP(G15,'Measure Assumptions'!B:D,3,FALSE)*'Program Activity Measures EE'!N15","v":{"$error":"#N/A"}},{"$f":"'Final App Worksheet'!$D$33","v":0}]
[{"$f":"'Final App Worksheet'!$J$7","v":""},"New Construction Program","Full Cost Recovery",{"$f":"'Final App Worksheet'!$B$18","v":""},{"$f":"'Final App Worksheet'!$J$7","v":""},null,{"$f":"IF('Final App Worksheet'!B34<>\"\",\"EnerGuide 85 or better homes\",\"\")","v":""},"Performance",null,null,null,null,null,{"$f":"'Final App Worksheet'!B34","v":0},null,{"$f":"'Final App Worksheet'!$B$28","v":"00:00:00"},0,0,{"$f":"VLOOKUP(G16,'Measure Assumptions'!B:C,2,FALSE)*'Program Activity Measures EE'!N16","v":{"$error":"#N/A"}},{"$f":"VLOOKUP(G16,'Measure Assumptions'!B:D,3,FALSE)*'Program Activity Measures EE'!N16","v":{"$error":"#N/A"}},{"$f":"'Final App Worksheet'!$D$34","v":0}]
[{"$f":"'Final App Worksheet'!$J$7","v":""},"New Construction Program","Full Cost Recovery",{"$f":"'Final App Worksheet'!$B$18","v":""},{"$f":"'Final App Worksheet'!$J$7","v":""},null,{"$f":"IF('Final App Worksheet'!$A$52<>\"\",'Final App Worksheet'!$A$52,\"\")","v":""},"Custom",null,null,null,{"$f":"G17","v":""},null,{"$f":"IF(OR('Final App Worksheet'!B52<>\"\",'Final App Worksheet'!D52<>\"\"),1,\"\")","v":""},null,{"$f":"'Final App Worksheet'!$B$28","v":"00:00:00"},{"$f":"+'Final App Worksheet'!G52","v":0},0,{"$f":"'Final App Worksheet'!D52","v":0},{"$f":"'Final App Worksheet'!B52","v":0},{"$f":"'Final App Worksheet'!H52","v":0}]
[{"$f":"'Final App Worksheet'!$J$7","v":""},"New Construction Program","Full Cost Recovery",{"$f":"'Final App Worksheet'!$B$18","v":""},{"$f":"'Final App Worksheet'!$J$7","v":""},null,{"$f":"IF('Final App Worksheet'!$A$53<>\"\",'Final App Worksheet'!$A$53,\"\")","v":""},"Custom",null,null,null,{"$f":"G18","v":""},null,{"$f":"IF(OR('Final App Worksheet'!B53<>\"\",'Final App Worksheet'!D53<>\"\"),1,\"\")","v":""},null,{"$f":"'Final App Worksheet'!$B$28","v":"00:00:00"},{"$f":"+'Final App Worksheet'!G53","v":0},{"$f":"Q18","v":0},{"$f":"'Final App Worksheet'!D53","v":0},{"$f":"'Final App Worksheet'!B53","v":0},{"$f":"'Final App Worksheet'!H53","v":0}]
[{"$f":"'Final App Worksheet'!$J$7","v":""},"New Construction Program","Full Cost Recovery",{"$f":"'Final App Worksheet'!$B$18","v":""},{"$f":"'Final App Worksheet'!$J$7","v":""},null,{"$f":"IF('Final App Worksheet'!$A$54<>\"\",'Final App Worksheet'!$A$54,\"\")","v":""},"Custom",null,null,null,"",null,{"$f":"IF(OR('Final App Worksheet'!B54<>\"\",'Final App Worksheet'!D54<>\"\"),1,\"\")","v":""},null,{"$f":"'Final App Worksheet'!$B$28","v":"00:00:00"},{"$f":"+'Final App Worksheet'!G54","v":0},0,{"$f":"'Final App Worksheet'!D54","v":0},{"$f":"'Final App Worksheet'!B54","v":0},{"$f":"'Final App Worksheet'!H54","v":0}]
[{"$f":"'Final App Worksheet'!$J$7","v":""},"New Construction Program","Full Cost Recovery",{"$f":"'Final App Worksheet'!$B$18","v":""},{"$f":"'Final App Worksheet'!$J$7","v":""},null,{"$f":"IF('Final App Worksheet'!$A$55<>\"\",'Final App Worksheet'!$A$55,\"\")","v":""},"Custom",null,null,null,"",null,{"$f":"IF(OR('Final App Worksheet'!B55<>\"\",'Final App Worksheet'!D55<>\"\"),1,\"\")","v":""},null,{"$f":"'Final App Worksheet'!$B$28","v":"00:00:00"},{"$f":"+'Final App Worksheet'!G55","v":0},0,{"$f":"'Final App Worksheet'!D55","v":0},{"$f":"'Final App Worksheet'!B55","v":0},{"$f":"'Final App Worksheet'!H55","v":0}]

{"sheet":"Dropdown List","index":9,"n_rows":74,"n_cols":3,"rows_kept":74,"cut":false,"hidden":true,"merged":[]}
["LDC Name",null,"Do all homes included in Final Application have occupancy permits? (Y/N)"]
["Algoma Power Inc.",null,"Yes"]
["Atikokan Hydro Inc.",null,"No"]
["Attawapiskat Power Corporation"]
["Bluewater Power Distribution Corporation"]
["Brantford Power Inc."]
["Burlington Hydro Inc."]
["Canadian Niagara Power Inc."]
["Centre Wellington Hydro Ltd."]
["Chapleau Public Utilities Corporation"]
["COLLUS PowerStream Corp."]
["Cooperative Hydro Embrun Inc."]
["E.L.K. Energy Inc."]
["Energy+ Inc."]
["Enersource Hydro - Alectra Utilities"]
["Entegrus Powerlines Inc."]
["EnWin Utilities Ltd."]
["Erie Thames Powerlines Corporation"]
["Espanola Regional Hydro Distribution Corp."]
["Essex Powerlines Corporation"]
["Festival Hydro Inc."]
["Fort Albany Power Corporation"]
["Fort Frances Power Corporation"]
["Greater Sudbury Hydro Inc."]
["Grimsby Power Incorporated"]
["Guelph Hydro Electric Systems Inc."]
["Haldimand County Hydro Inc."]
["Halton Hills Hydro Inc."]
["Hearst Power Distribution Company Ltd."]
["Horizon Utilities Corp - Alectra Utilities"]
["Hydro 2000 Inc."]
["Hydro Hawkesbury Inc."]
["Hydro One Brampton - Alectra Utilities"]
["Hydro One Networks Inc."]
["Hydro Ottawa Limited"]
["InnPower Corporation"]
["Kashechewan Power Corporation"]
["Kenora Hydro Electric Corporation Ltd."]
["Kingston Hydro Corporation"]
["Kitchener-Wilmot Hydro Inc."]
["Lakefront Utilities Inc."]
["Lakeland Power Distribution Ltd."]
["London Hydro Inc."]
["Midland Power Utility Corporation"]
["Milton Hydro Distribution Inc."]
["Newmarket-Tay Power Distribution Ltd."]
["Niagara Peninsula Energy Inc."]
["Niagara-on-the-Lake Hydro Inc."]
["North Bay Hydro Distribution Limited"]
["Northern Ontario Wires Inc."]
["Oakville Hydro Electricity Distribution Inc."]
["Orangeville Hydro Limited"]
["Orillia Power Distribution Corporation"]
["Oshawa PUC Networks Inc."]
["Ottawa River Power Corporation"]
["Peterborough Distribution Incorporated"]
["PowerStream Inc. - Alectra Utilities"]
["PUC Distribution Inc."]
["Renfrew Hydro Inc."]
["Rideau St. Lawrence Distribution Inc."]
["Sioux Lookout Hydro Inc."]
["St. Thomas Energy Inc."]
["Thunder Bay Hydro Electricity Distribution"]
["Tillsonburg Hydro Inc."]
["Toronto Hydro-Electric System Limited"]
["Veridian Connections Inc."]
["Wasaga Distribution Inc."]
["Waterloo North Hydro Inc."]
["Welland Hydro-Electric System Corp."]
["Wellington North Power Inc."]
["West Coast Huron Energy Inc."]
["Westario Power Inc."]
["Whitby Hydro Electric Corporation"]
["Woodstock Hydro Services Inc."]